fUST/lending_fUST_20250605
["ID","MTS","AMOUNT","RATE_DAILY","PERIOD"]
[364406954,1749093039338,-433.23926308,0.00017416,2]
[364406955,1749093039347,-433.43457499,0.00017416,2]
[364406956,1749093039356,-431.92057926,0.00017416,2]
[364406957,1749093039365,-436.46983865,0.00017416,2]
[364406958,1749093039374,-403.19056077,0.00017416,2]
[364406959,1749093039383,-160.28861631,0.00017416,2]
[364406960,1749093039392,-434.87681519,0.00017416,2]
[364406961,1749093039402,-430.0,0.00017416,2]
[364406962,1749093039411,-432.65076433,0.00017416,2]
[364406963,1749093039421,-432.7636332,0.00017416,2]
[364406964,1749093039430,-522.50388006,0.00017416,2]
[364406965,1749093039439,-434.13182847,0.00017416,2]
[364406966,1749093039449,-433.91234916,0.00017416,2]
[364406967,1749093039459,-442.72039857,0.00017416,2]
[364406968,1749093039469,-433.03059045,0.00017416,2]
[364406969,1749093039481,-432.2429584,0.00017416,2]
[364406970,1749093039491,-435.62207338,0.00017416,2]
[364406971,1749093039499,-432.17249315,0.00017416,2]
[364406972,1749093039509,-432.74754397,0.00017416,2]
[364406973,1749093039519,-438.95824352,0.00017416,2]
[364406974,1749093039528,-437.09428049,0.00017416,2]
[364406975,1749093039537,-436.14489868,0.00017416,2]
[364406976,1749093039546,-454.90234323,0.00017416,2]
[364406977,1749093039555,-445.15082353,0.00017416,2]
[364406978,1749093039564,-433.67905227,0.00017416,2]
[364406979,1749093039574,-437.44700746,0.00017416,2]
[364406980,1749093039583,-438.73109449,0.00017416,2]
[364406981,1749093039592,-443.14001101,0.00017416,2]
[364406982,1749093039601,-167.00801324,0.00017416,2]
[364406983,1749093039611,-436.31411021,0.00017416,2]
[364406984,1749093039621,-444.34850301,0.00017416,2]
[364406985,1749093039630,-441.17309034,0.00017416,2]
[364406986,1749093039639,-436.17375379,0.00017416,2]
[364406987,1749093039650,-439.01557526,0.00017416,2]
[364406988,1749093039659,-443.13593947,0.00017416,2]
[364406989,1749093039669,-440.38130445,0.00017416,2]
[364406990,1749093039678,-438.14059621,0.00017416,2]
[364406991,1749093039688,-434.67815842,0.00017416,2]
[364406992,1749093039698,-378.25562369,0.00017416,2]
[364406993,1749093039707,-413.48937036,0.00017416,2]
[364406994,1749093039717,-432.64661378,0.00017416,2]
[364406995,1749093039726,-432.9125302,0.00017416,2]
[364406996,1749093039735,-442.75076019,0.00017416,2]
[364406997,1749093039744,-440.0,0.00017416,2]
[364406998,1749093039753,-440.0,0.00017416,2]
[364406999,1749093039763,-443.45466897,0.00017416,2]
[364407000,1749093039773,-440.0,0.00017416,2]
[364407001,1749093039783,-449.44858988,0.00017416,2]
[364407002,1749093039792,-440.0,0.00017416,2]
[364407003,1749093039802,-440.0,0.00017416,2]
[364407004,1749093039811,-440.0,0.00017416,2]
[364407005,1749093039820,-444.86042466,0.00017416,2]
[364407006,1749093039829,-435.25210393,0.00017416,2]
[364407007,1749093039838,-433.68964345,0.00017416,2]
[364407008,1749093039847,-446.36884952,0.00017416,2]
[364407009,1749093039856,-440.0,0.00017416,2]
[364407010,1749093039866,-536.03915903,0.00017416,2]
[364407011,1749093039876,-440.0,0.00017416,2]
[364407012,1749093039887,-460.0722226,0.00017416,2]
[364407013,1749093039896,-430.0,0.00017416,2]
[364407014,1749093039906,-384.97137483,0.00017417,2]
[364407015,1749093039916,-282.27697799,0.00017417,2]
[364407016,1749093039925,-198.19292758,0.00017417,2]
[364407017,1749093039934,-430.0,0.00017417,2]
[364407018,1749093039944,-440.0,0.00017417,2]
[364407019,1749093039953,-440.0,0.00017417,2]
[364407020,1749093039963,-281.22802622,0.00017417,2]
[364407021,1749093039972,-432.64009642,0.00017417,2]
[364407022,1749093039981,-440.0,0.00017417,2]
[364407023,1749093039991,-576.87,0.00017417,2]
[364407024,1749093039999,-432.97508632,0.00017417,2]
[364407025,1749093040010,-431.30497412,0.00017417,2]
[364407026,1749093040019,-430.0,0.00017417,2]
[364407027,1749093040029,-824.46,0.00017417,2]
[364407028,1749093040038,-314.81516653,0.00017417,2]
[364407029,1749093040047,-504.80209702,0.00017417,2]
[364407030,1749093040057,-435.81879667,0.00017417,2]
[364407031,1749093040066,-440.0,0.00017417,2]
[364407032,1749093040076,-440.0,0.00017417,2]
[364407033,1749093040085,-440.0,0.00017417,2]
[364407034,1749093040094,-453.68795002,0.00017417,2]
[364407035,1749093040103,-452.40625404,0.00017417,2]
[364407036,1749093040113,-554.01,0.00017417,2]
[364407037,1749093040122,-734.22,0.00017417,2]
[364407038,1749093040131,-440.0,0.00017417,2]
[364407039,1749093040141,-401.69420668,0.00017417,2]
[364407040,1749093040151,-440.0,0.00017417,2]
[364407041,1749093040160,-440.78006391,0.00017417,2]
[364407042,1749093040170,-458.65,0.00017417,2]
[364407043,1749093040180,-440.0,0.00017417,2]
[364407044,1749093040189,-468.6610821,0.00017417,2]
[364407045,1749093040199,-440.0,0.00017417,2]
[364407046,1749093040210,-868.47,0.00017417,2]
[364407047,1749093040219,-446.31383495,0.00017417,2]
[364407048,1749093040229,-440.0,0.00017417,2]
[364407049,1749093040238,-440.0,0.00017417,2]
[364407050,1749093040247,-440.0,0.00017417,2]
[364407051,1749093040352,-458.22379602,0.00017417,2]
[364407052,1749093040362,-1311.49,0.00017417,2]
[364407053,1749093040372,-440.0,0.00017417,2]
[364407054,1749093040382,-440.0,0.00017417,2]
[364407055,1749093040391,-1897.17,0.00017417,2]
[364407056,1749093040401,-440.0,0.00017417,2]
[364407057,1749093040411,-391.49646705,0.00017417,2]
[364407058,1749093040420,-500.0,0.00017417,2]
[364407059,1749093040430,-500.0,0.00017417,2]
[364407060,1749093040439,-430.0,0.00017418,2]
[364407062,1749093040449,-440.0,0.00017418,2]
[364407064,1749093040459,-440.0,0.00017418,2]
[364407066,1749093040468,-403.78931813,0.00017418,2]
[364407068,1749093040479,-341.45555516,0.00017418,2]
[364407070,1749093040488,-440.0,0.00017418,2]
[364407072,1749093040499,-430.0,0.00017418,2]
[364407074,1749093040508,-430.0,0.00017418,2]
[364407076,1749093040518,-440.0,0.00017418,2]
[364407078,1749093040527,-440.0,0.00017418,2]
[364407080,1749093040536,-440.0,0.00017418,2]
[364407081,1749093040546,-161.63453045,0.00017418,2]
[364407082,1749093040557,-500.0,0.00017418,2]
[364407083,1749093040568,-252.64411045,0.00017419,2]
[364407084,1749093040578,-440.0,0.00017419,2]
[364407085,1749093040588,-323.96014778,0.00017419,2]
[364407086,1749093040598,-435.43934407,0.00017419,2]
[364407087,1749093040607,-434.52097798,0.00017419,2]
[364407088,1749093040617,-434.08751566,0.00017419,2]
[364407089,1749093040627,-440.0,0.00017419,2]
[364407090,1749093040637,-408.76008795,0.00017419,2]
[364407091,1749093040648,-436.45901292,0.00017419,2]
[364407092,1749093040657,-240.05764255,0.00017419,2]
[364407093,1749093040667,-437.57608525,0.00017419,2]
[364407094,1749093040677,-440.0,0.00017419,2]
[364407095,1749093040686,-331.02412366,0.00017419,2]
[364407096,1749093040696,-440.0,0.00017419,2]
[364407097,1749093040706,-430.0,0.00017419,2]
[364407098,1749093040716,-440.0,0.00017419,2]
[364407099,1749093040725,-445.82238861,0.00017419,2]
[364407100,1749093040735,-440.0,0.00017419,2]
[364407101,1749093040744,-440.0,0.00017419,2]
[364407102,1749093040754,-440.0,0.00017419,2]
[364407103,1749093040763,-432.30255837,0.00017419,2]
[364407104,1749093040772,-440.0,0.00017419,2]
[364407105,1749093040782,-420.55686421,0.00017419,2]
[364407106,1749093040791,-442.68396033,0.00017419,2]
[364407107,1749093040800,-443.25570253,0.00017419,2]
[364407108,1749093040809,-444.30105158,0.00017419,2]
[364407109,1749093040819,-511.93017923,0.00017419,2]
[364407110,1749093040828,-389.97806928,0.00017419,2]
[364407111,1749093040837,-405.30393959,0.00017419,2]
[364407112,1749093040847,-440.0,0.00017419,2]
[364407113,1749093040856,-475.33267565,0.00017419,2]
[364407114,1749093040866,-436.67976486,0.00017419,2]
[364407115,1749093040875,-440.0,0.00017419,2]
[364407116,1749093040884,-440.0,0.00017419,2]
[364407118,1749093040894,-440.94274445,0.00017419,2]
[364407120,1749093040904,-440.0,0.00017419,2]
[364407122,1749093040913,-435.22113647,0.00017419,2]
[364407124,1749093040923,-440.0,0.00017419,2]
[364407125,1749093040933,-440.0,0.00017419,2]
[364407127,1749093040942,-439.39016947,0.00017419,2]
[364407128,1749093040952,-487.60886634,0.00017419,2]
[364407130,1749093040961,-440.0,0.00017419,2]
[364407132,1749093040971,-440.0,0.00017419,2]
[364407134,1749093040981,-440.0,0.00017419,2]
[364407136,1749093040990,-224.31447388,0.00017419,2]
[364407137,1749093040999,-440.0,0.00017419,2]
[364407138,1749093041008,-440.0,0.00017419,2]
[364407139,1749093041018,-311.84169148,0.00017419,2]
[364407140,1749093041029,-444.31170816,0.00017419,2]
[364407141,1749093041039,-440.0,0.00017419,2]
[364407142,1749093041049,-440.0,0.00017419,2]
[364407143,1749093041059,-364.11036392,0.00017419,2]
[364407144,1749093041068,-440.0,0.00017419,2]
[364407145,1749093041077,-440.0,0.00017419,2]
[364407146,1749093041088,-152.04443898,0.00017419,2]
[364407147,1749093041097,-440.0,0.00017419,2]
[364407148,1749093041106,-432.57323111,0.00017419,2]
[364407149,1749093041116,-408.22952071,0.00017419,2]
[364407150,1749093041126,-440.0,0.00017419,2]
[364407151,1749093041136,-430.0,0.00017419,2]
[364407152,1749093041146,-497.89673747,0.00017419,2]
[364407153,1749093041155,-438.1436889,0.00017419,2]
[364407154,1749093041165,-440.0,0.00017419,2]
[364407155,1749093041175,-363.68248777,0.00017419,2]
[364407156,1749093041185,-440.0,0.00017419,2]
[364407157,1749093041195,-440.0,0.00017419,2]
[364407158,1749093041205,-440.0,0.00017419,2]
[364407159,1749093041215,-440.0,0.00017419,2]
[364407160,1749093041225,-450.62970672,0.00017419,2]
[364407161,1749093041234,-288.81189115,0.00017439,2]
[364407162,1749093041244,-537.978401,0.00017473,2]
[364407163,1749093041254,-502.68156585,0.00017473,2]
[364407164,1749093041263,-151.0,0.0001748,2]
[364407165,1749093041273,-151.0,0.00017507,2]
[364407166,1749093041282,-2000.0,0.00017534,2]
[364407167,1749093041292,-205.99110364,0.00017535,2]
[364407168,1749093041301,-1611.75439528,0.00017589,2]
[364407169,1749093041311,-420.0,0.00017681,2]
[364407170,1749093041323,-1134.6,0.00017681,2]
[364407171,1749093041333,-429.42299405,0.00017682,2]
[364407172,1749093041343,-420.0,0.00017682,2]
[364407173,1749093041353,-420.0,0.00017682,2]
[364407174,1749093041362,-446.82886472,0.00017682,2]
[364407175,1749093041371,-432.34475434,0.00017682,2]
[364407176,1749093041381,-440.0,0.00017682,2]
[364407177,1749093041391,-430.89276745,0.00017682,2]
[364407178,1749093041400,-1030.4,0.00017682,2]
[364407179,1749093041410,-420.0,0.00017682,2]
[364407180,1749093041420,-420.0,0.00017682,2]
[364407181,1749093041430,-440.0,0.00017682,2]
[364407182,1749093041440,-904.68,0.00017682,2]
[364407183,1749093041450,-1584.37,0.00017682,2]
[364407184,1749093041460,-420.0,0.00017689,2]
[364407185,1749093041469,-424.53253695,0.00017689,2]
[364407186,1749093041481,-420.0,0.00017689,2]
[364407187,1749093041490,-1438.38,0.00017689,2]
[364407188,1749093041500,-440.0,0.00017689,2]
[364407189,1749093041510,-420.0,0.00017689,2]
[364407190,1749093041520,-440.0,0.00017689,2]
[364407191,1749093041530,-318.5202815,0.00017689,2]
[364407192,1749093041540,-420.0,0.00017689,2]
[364407193,1749093041550,-440.0,0.00017689,2]
[364407194,1749093041561,-440.0,0.00017689,2]
[364407195,1749093041570,-420.0,0.00017689,2]
[364407196,1749093041580,-420.0,0.00017689,2]
[364407197,1749093041590,-440.0,0.00017689,2]
[364407198,1749093041599,-420.0,0.00017689,2]
[364407199,1749093041609,-581.05,0.00017689,2]
[364407200,1749093041619,-420.0,0.00017689,2]
[364407201,1749093041628,-420.0,0.00017689,2]
[364407202,1749093041637,-437.27484047,0.00017689,2]
[364407203,1749093041646,-504.69119862,0.00017689,2]
[364407204,1749093041656,-180.62152779,0.00017689,2]
[364407205,1749093041666,-420.0,0.00017689,2]
[364407206,1749093041676,-440.0,0.00017689,2]
[364407207,1749093041686,-420.0,0.00017689,2]
[364407208,1749093041696,-656.45,0.00017689,2]
[364407209,1749093041706,-440.0,0.00017689,2]
[364407210,1749093041716,-420.0,0.00017689,2]
[364407211,1749093041725,-436.86891283,0.0001769,2]
[364407212,1749093041734,-405.91141148,0.0001769,2]
[364407213,1749093041743,-447.34432592,0.0001769,2]
[364407214,1749093041752,-479.84832364,0.0001769,2]
[364407215,1749093041762,-420.0,0.0001769,2]
[364407216,1749093041772,-440.0,0.0001769,2]
[364407217,1749093041781,-440.0,0.0001769,2]
[364407218,1749093041791,-440.0,0.0001769,2]
[364407219,1749093041800,-440.0,0.0001769,2]
[364407220,1749093041810,-440.0,0.0001769,2]
[364407221,1749093041819,-440.0,0.0001769,2]
[364407222,1749093041829,-440.0,0.0001769,2]
[364407223,1749093041838,-440.0,0.0001769,2]
[364407224,1749093041848,-440.0,0.0001769,2]
[364407225,1749093041857,-440.0,0.0001769,2]
[364407226,1749093041867,-440.0,0.0001769,2]
[364407227,1749093041877,-526.2598085,0.00017691,2]
[364407228,1749093041887,-440.0,0.00017691,2]
[364407229,1749093041897,-420.0,0.00017691,2]
[364407230,1749093041907,-576.87,0.00017691,2]
[364407231,1749093041916,-824.46,0.00017691,2]
[364407232,1749093041926,-440.0,0.00017691,2]
[364407233,1749093041936,-476.00903314,0.00017691,2]
[364407234,1749093041947,-440.0,0.00017691,2]
[364407235,1749093041956,-554.01,0.00017691,2]
[364407236,1749093041965,-734.22,0.00017691,2]
[364407237,1749093041975,-440.0,0.00017691,2]
[364407238,1749093041984,-440.0,0.00017691,2]
[364407239,1749093041994,-458.65,0.00017691,2]
[364407240,1749093042003,-440.0,0.00017691,2]
[364407241,1749093042013,-440.0,0.00017691,2]
[364407242,1749093042023,-868.47,0.00017691,2]
[364407243,1749093042033,-440.0,0.00017691,2]
[364407244,1749093042043,-440.0,0.00017691,2]
[364407245,1749093042052,-440.0,0.00017691,2]
[364407246,1749093042062,-1311.49,0.00017691,2]
[364407247,1749093042071,-440.0,0.00017691,2]
[364407248,1749093042081,-551.62940633,0.00017691,2]
[364407249,1749093042091,-1897.17,0.00017691,2]
[364407250,1749093042101,-440.0,0.00017691,2]
[364407251,1749093042111,-440.0,0.00017692,2]
[364407252,1749093042122,-440.0,0.00017692,2]
[364407253,1749093042132,-440.0,0.00017692,2]
[364407254,1749093042142,-440.0,0.00017692,2]
[364407255,1749093042152,-420.0,0.00017692,2]
[364407256,1749093042162,-435.16556294,0.00017692,2]
[364407257,1749093042174,-557.73420847,0.00017693,2]
[364407258,1749093042184,-440.0,0.00017693,2]
[364407259,1749093042194,-427.26393501,0.00017693,2]
[364407260,1749093042204,-545.34722228,0.00017693,2]
[364407261,1749093042214,-430.48538673,0.00017693,2]
[364407262,1749093042224,-440.0,0.00017693,2]
[364407263,1749093042234,-414.10730866,0.00017693,2]
[364407264,1749093042244,-420.0,0.00017693,2]
[364407265,1749093042254,-440.0,0.00017693,2]
[364407266,1749093042263,-462.53114321,0.00017693,2]
[364407267,1749093042273,-440.0,0.00017693,2]
[364407268,1749093042283,-440.0,0.00017693,2]
[364407269,1749093042292,-387.81493641,0.00017693,2]
[364407270,1749093042302,-430.03104143,0.00017693,2]
[364407271,1749093042311,-440.0,0.00017693,2]
[364407272,1749093042321,-434.1267044,0.00017693,2]
[364407273,1749093042331,-440.0,0.00017693,2]
[364407274,1749093042340,-440.0,0.00017693,2]
[364407275,1749093042351,-440.0,0.00017693,2]
[364407276,1749093042360,-440.0,0.00017693,2]
[364407277,1749093042369,-427.0046739,0.00017693,2]
[364407278,1749093042378,-450.02596165,0.00017693,2]
[364407279,1749093042388,-440.0,0.00017693,2]
[364407280,1749093042398,-432.70981315,0.00017693,2]
[364407281,1749093042407,-440.0,0.00017693,2]
[364407282,1749093042416,-420.0,0.00017693,2]
[364407283,1749093042425,-429.06232774,0.00017693,2]
[364407284,1749093042435,-440.0,0.00017693,2]
[364407285,1749093042444,-440.0,0.00017693,2]
[364407286,1749093042455,-424.09752703,0.00017693,2]
[364407287,1749093042464,-420.0,0.00017693,2]
[364407288,1749093042473,-1005.21,0.000178,2]
[364407289,1749093042487,-2000.0,0.00017808,2]
[364407290,1749093042496,-420.0,0.00017941,2]
[364407291,1749093042506,-1134.6,0.00017955,2]
[364407292,1749093042515,-1030.4,0.00017956,2]
[364407293,1749093042526,-420.0,0.00017956,2]
[364407294,1749093042624,-904.68,0.00017956,2]
[364407295,1749093042634,-1584.37,0.00017956,2]
[364407296,1749093042644,-1438.38,0.00017963,2]
[364407297,1749093042654,-440.0,0.00017963,2]
[364407298,1749093042664,-440.0,0.00017963,2]
[364407299,1749093042673,-440.0,0.00017963,2]
[364407300,1749093042684,-420.0,0.00017963,2]
[364407301,1749093042694,-581.05,0.00017963,2]
[364407302,1749093042703,-440.0,0.00017963,2]
[364407303,1749093042713,-656.45,0.00017963,2]
[364407304,1749093042722,-440.0,0.00017964,2]
[364407305,1749093042733,-440.0,0.00017964,2]
[364407306,1749093042742,-160.38968634,0.00017964,2]
[364407307,1749093042751,-440.0,0.00017964,2]
[364407308,1749093042760,-410.0,0.00017964,2]
[364407309,1749093042770,-425.62951908,0.00017964,2]
[364407310,1749093042779,-440.0,0.00017964,2]
[364407311,1749093042789,-440.0,0.00017964,2]
[364407312,1749093042797,-440.0,0.00017964,2]
[364407313,1749093042807,-440.0,0.00017964,2]
[364407314,1749093042816,-440.0,0.00017964,2]
[364407315,1749093042825,-440.0,0.00017965,2]
[364407316,1749093042835,-576.87,0.00017965,2]
[364407317,1749093042844,-824.46,0.00017965,2]
[364407318,1749093042854,-440.0,0.00017965,2]
[364407319,1749093042863,-440.0,0.00017965,2]
[364407320,1749093042873,-554.01,0.00017965,2]
[364407321,1749093042882,-734.22,0.00017965,2]
[364407322,1749093042891,-440.0,0.00017965,2]
[364407323,1749093042901,-410.0,0.00017965,2]
[364407324,1749093042910,-458.65,0.00017965,2]
[364407325,1749093042919,-440.0,0.00017965,2]
[364407326,1749093042929,-440.0,0.00017965,2]
[364407327,1749093042938,-868.47,0.00017965,2]
[364407328,1749093042950,-440.0,0.00017965,2]
[364407329,1749093042959,-410.0,0.00017965,2]
[364407330,1749093042971,-440.0,0.00017965,2]
[364407331,1749093042981,-1311.49,0.00017965,2]
[364407332,1749093042991,-440.0,0.00017965,2]
[364407333,1749093043001,-1897.17,0.00017965,2]
[364407334,1749093043011,-440.0,0.00017965,2]
[364407335,1749093043021,-440.0,0.00017966,2]
[364407336,1749093043031,-440.0,0.00017966,2]
[364407337,1749093043040,-410.0,0.00017966,2]
[364407338,1749093043050,-427.85782672,0.00017966,2]
[364407339,1749093043060,-440.0,0.00017967,2]
[364407340,1749093043069,-466.6897307,0.00017967,2]
[364407341,1749093043080,-438.62519584,0.00017967,2]
[364407342,1749093043092,-431.73907989,0.00017967,2]
[364407343,1749093043103,-440.0,0.00017967,2]
[364407344,1749093043112,-410.0,0.00017967,2]
[364407345,1749093043123,-422.39523897,0.00017967,2]
[364407346,1749093043132,-422.82332956,0.00017967,2]
[364407347,1749093043141,-469.015532,0.00017967,2]
[364407348,1749093043151,-440.0,0.00017967,2]
[364407349,1749093043161,-156.4959568,0.00017967,2]
[364407350,1749093043171,-442.96608141,0.00017967,2]
[364407351,1749093043181,-410.0,0.00017967,2]
[364407352,1749093043191,-430.27286343,0.00017967,2]
[364407353,1749093043201,-1915.20230762,0.00018,2]
[364407355,1749093043211,-2000.0,0.00018082,2]
[364407357,1749093043220,-1915.2023074,0.00018141,2]
[364407358,1749093043229,-1134.6,0.00018229,2]
[364407359,1749093043239,-1030.4,0.0001823,2]
[364407360,1749093043248,-904.68,0.0001823,2]
[364407361,1749093043258,-1584.37,0.0001823,2]
[364407363,1749093043267,-1438.38,0.00018237,2]
[364407365,1749093043276,-440.0,0.00018237,2]
[364407366,1749093043287,-440.0,0.00018237,2]
[364407367,1749093043296,-440.0,0.00018237,2]
[364407368,1749093043309,-581.05,0.00018237,2]
[364407369,1749093043318,-440.0,0.00018237,2]
[364407370,1749093043328,-656.45,0.00018237,2]
[364407372,1749093043338,-440.0,0.00018238,2]
[364407374,1749093043347,-207.48967016,0.00018238,2]
[364407376,1749093043356,-440.0,0.00018238,2]
[364407378,1749093043365,-440.0,0.00018238,2]
[364407380,1749093043376,-557.48,0.00018238,2]
[364407381,1749093043387,-411.78577258,0.00018238,2]
[364407384,1749093043398,-440.0,0.00018238,2]
[364407386,1749093043408,-440.0,0.00018238,2]
[364407388,1749093043418,-440.0,0.00018239,2]
[364407389,1749093043427,-576.87,0.00018239,2]
[364407392,1749093043437,-824.46,0.00018239,2]
[364407394,1749093043446,-410.0,0.00018239,2]
[364407396,1749093043458,-440.0,0.00018239,2]
[364407398,1749093043467,-734.22,0.00018239,2]
[364407400,1749093043477,-554.01,0.00018239,2]
[364407401,1749093043488,-440.0,0.00018239,2]
[364407403,1749093043498,-458.65,0.00018239,2]
[364407405,1749093043508,-440.0,0.00018239,2]
[364407407,1749093043518,-440.0,0.00018239,2]
[364407409,1749093043528,-868.47,0.00018239,2]
[364407411,1749093043538,-440.0,0.00018239,2]
[364407413,1749093043547,-440.0,0.00018239,2]
[364407415,1749093043557,-1311.49,0.00018239,2]
[364407417,1749093043567,-440.0,0.00018239,2]
[364407419,1749093043576,-1897.17,0.00018239,2]
[364407421,1749093043586,-440.0,0.00018239,2]
[364407423,1749093043595,-440.0,0.0001824,2]
[364407424,1749093043605,-440.0,0.0001824,2]
[364407426,1749093043614,-403.51664198,0.00018241,2]
[364407428,1749093043623,-440.0,0.00018241,2]
[364407430,1749093043633,-440.0,0.00018241,2]
[364407432,1749093043642,-2000.0,0.00018356,2]
[364407434,1749093043656,-1915.2023074,0.00018383,2]
[364407437,1749093043671,-1134.6,0.00018503,2]
[364407439,1749093043685,-1030.4,0.00018504,2]
[364407442,1749093043699,-904.68,0.00018504,2]
[364407444,1749093043710,-1584.37,0.00018504,2]
[364407445,1749093043723,-1438.38,0.00018511,2]
[364407446,1749093043736,-440.0,0.00018511,2]
[364407447,1749093043750,-567.28746273,0.00018511,2]
[364407448,1749093043764,-432.61578185,0.00018511,2]
[364407449,1749093043777,-581.05,0.00018511,2]
[364407450,1749093043791,-440.0,0.00018511,2]
[364407451,1749093043805,-656.45,0.00018511,2]
[364407452,1749093043819,-440.0,0.00018512,2]
[364407453,1749093043831,-440.0,0.00018512,2]
[364407454,1749093043844,-400.0,0.00018512,2]
[364407455,1749093043856,-440.0,0.00018512,2]
[364407457,1749093043868,-440.0,0.00018512,2]
[364407458,1749093043883,-440.0,0.00018513,2]
[364407459,1749093043896,-576.87,0.00018513,2]
[364407460,1749093043908,-824.46,0.00018513,2]
[364407461,1749093043919,-440.0,0.00018513,2]
[364407462,1749093043929,-734.22,0.00018513,2]
[364407464,1749093043942,-554.01,0.00018513,2]
[364407466,1749093043954,-440.0,0.00018513,2]
[364407468,1749093043967,-458.65,0.00018513,2]
[364407471,1749093043980,-440.0,0.00018513,2]
[364407473,1749093043992,-440.0,0.00018513,2]
[364407475,1749093044005,-868.47,0.00018513,2]
[364407478,1749093044019,-440.0,0.00018513,2]
[364407480,1749093044034,-440.0,0.00018513,2]
[364407482,1749093044046,-1311.49,0.00018513,2]
[364407484,1749093044056,-440.0,0.00018513,2]
[364407486,1749093044067,-1897.17,0.00018513,2]
[364407489,1749093044078,-440.0,0.00018513,2]
[364407491,1749093044092,-440.0,0.00018514,2]
[364407494,1749093044107,-440.0,0.00018514,2]
[364407496,1749093044120,-440.0,0.00018515,2]
[364407498,1749093044131,-271.96,0.00018515,2]
[364407500,1749093044142,-1915.2023074,0.00018624,2]
[364407503,1749093044154,-2000.0,0.0001863,2]
[364407505,1749093044166,-1134.6,0.00018777,2]
[364407507,1749093044178,-1030.4,0.00018778,2]
[364407510,1749093044193,-904.68,0.00018778,2]
[364407512,1749093044205,-1584.37,0.00018778,2]
[364407514,1749093044216,-787.2,0.00018779,3]
[364407516,1749093044228,-393.6,0.00018779,3]
[364407518,1749093044239,-1438.38,0.00018785,2]
[364407520,1749093044251,-440.0,0.00018785,2]
[364407523,1749093044262,-581.05,0.00018785,2]
[364407525,1749093044273,-440.0,0.00018785,2]
[364407527,1749093044285,-656.45,0.00018785,2]
[364407529,1749093044296,-440.0,0.00018786,2]
[364407532,1749093044312,-440.0,0.00018786,2]
[364407534,1749093044323,-440.0,0.00018786,2]
[364407536,1749093044335,-410.25692161,0.00018786,2]
[364407539,1749093044347,-440.0,0.00018787,2]
[364407541,1749093044358,-576.87,0.00018787,2]
[364407543,1749093044370,-824.46,0.00018787,2]
[364407545,1749093044381,-440.0,0.00018787,2]
[364407548,1749093044393,-734.22,0.00018787,2]
[364407550,1749093044404,-554.01,0.00018787,2]
[364407552,1749093044416,-440.0,0.00018787,2]
[364407554,1749093044428,-458.65,0.00018787,2]
[364407556,1749093044440,-440.0,0.00018787,2]
[364407559,1749093044451,-347.63854973,0.00018787,2]
[364407561,1749093044463,-868.47,0.00018787,2]
[364407563,1749093044475,-440.0,0.00018787,2]
[364407565,1749093044488,-440.0,0.00018787,2]
[364407567,1749093044499,-1311.49,0.00018787,2]
[364407569,1749093044510,-440.0,0.00018787,2]
[364407572,1749093044523,-1897.17,0.00018787,2]
[364407574,1749093044534,-440.0,0.00018787,2]
[364407576,1749093044546,-440.0,0.00018788,2]
[364407578,1749093044560,-463.98923827,0.00018788,2]